bitfinex-derivatives/quotes_BTCF0:USTF0_20240923
["timestamp","ask_amount","ask_price","bid_price","bid_amount"]
[1727103814276,0.19,63208.0,63200.0,0.439909]
[1727103814481,0.19,63202.0,63196.0,0.04962767]
[1727103814681,0.19,63202.0,63196.0,0.0023734]
[1727103815892,0.191,63202.0,63196.0,0.0123734]
[1727103816102,0.191,63202.0,63196.0,0.01]
[1727103816103,0.5508,63197.0,63196.0,0.01]
[1727103816388,0.629913,63197.0,63196.0,0.01]
[1727103818199,0.630913,63197.0,63196.0,0.004]
[1727103818380,0.079116,63195.0,63189.0,0.04725427]
[1727103818698,0.079116,63195.0,63188.0,0.04716526]
[1727103818995,0.079117,63194.0,63189.0,0.079123]
[1727103819190,0.077117,63194.0,63189.0,0.079123]
[1727103819387,0.5518,63197.0,63188.0,0.04716526]
[1727103819388,0.19,63190.0,63188.0,0.04716526]
[1727103819686,0.269122,63190.0,63186.0,0.04716526]
[1727103819892,0.269122,63190.0,63185.0,0.04716526]
[1727103820276,0.079118,63193.0,63187.0,0.079125]
[1727103820476,0.079118,63193.0,63188.0,0.079123]
[1727103821084,0.07912,63192.0,63188.0,0.079123]
[1727103821294,0.3618,63197.0,63184.0,0.079129]
[1727103821295,0.079126,63187.0,63184.0,0.079129]
[1727103821793,0.36168,63190.0,63182.0,0.3608]
[1727103821989,0.36168,63190.0,63189.0,0.088123]
[1727103821990,0.3608,63190.0,63189.0,0.088123]
[1727103822586,0.3618,63197.0,63187.0,0.19]
[1727103822888,0.001,63197.0,63187.0,0.19]
[1727103823092,0.3645,63204.0,63197.0,0.079113]
[1727103823288,0.3608,63204.0,63197.0,0.079113]
[1727103823485,0.19,63202.0,63197.0,0.079113]
[1727103823687,0.19,63202.0,63189.0,0.1061]
[1727103823991,0.002,63197.0,63196.0,0.079114]
[1727103825996,0.001,63197.0,63196.0,0.079114]
[1727103826390,0.001,63202.0,63200.0,0.079109]
[1727103826589,0.001,63202.0,63201.0,0.079108]
[1727103826790,0.079106,63203.0,63201.0,0.079108]
[1727103827291,0.079106,63203.0,63202.0,0.079107]
[1727103827603,0.3608,63204.0,63203.0,0.079106]
[1727103827988,0.00237418,63210.0,63209.0,0.079098]
[1727103829892,0.3608,63217.0,63209.0,0.079098]
[1727103830197,0.3608,63217.0,63216.0,0.079089]
[1727103830600,0.19,63224.0,63216.0,0.3608]
[1727103830801,0.439878,63225.0,63216.0,0.3608]
[1727103830802,0.3608,63225.0,63216.0,0.3608]
[1727103830998,0.36168,63225.0,63224.0,0.079079]
[1727103831221,0.3608,63225.0,63224.0,0.079079]
[1727103831903,0.0023737,63231.0,63229.0,0.079073]
[1727103832121,0.19,63230.0,63225.0,0.079078]
[1727103832298,0.19,63230.0,63216.0,0.3608]
[1727103832299,0.3608,63227.0,63226.0,0.079077]
[1727103834193,0.3728,63227.0,63226.0,0.079077]
[1727103834393,0.3858,63227.0,63226.0,0.080077]
[1727103834593,0.4767,63227.0,63226.0,0.080077]
[1727103835306,0.4767,63227.0,63226.0,0.001]
[1727103835503,0.4767,63227.0,63226.0,0.080077]
[1727103835999,0.4777,63227.0,63226.0,0.080077]
[1727103836408,0.4777,63227.0,63226.0,0.001]
[1727103837403,0.558776,63227.0,63226.0,0.001]
[1727103839409,0.637852,63227.0,63226.0,0.001]
[1727103839707,0.4797,63227.0,63226.0,0.001]
[1727103839904,0.637852,63227.0,63226.0,0.001]
[1727103840106,0.623852,63227.0,63226.0,0.001]
[1727103840294,0.079082,63222.0,63219.0,0.079085]
[1727103840503,0.03728,63220.0,63219.0,0.079085]
[1727103841313,0.16728,63220.0,63219.0,0.079085]
[1727103841615,0.079086,63219.0,63211.0,0.18767292]
[1727103841905,0.079094,63212.0,63211.0,0.0952]
[1727103842107,0.0791,63208.0,63205.0,0.04716526]
[1727103842311,0.13,63206.0,63205.0,0.079103]
[1727103843302,0.13,63206.0,63205.0,0.080103]
[1727103843807,0.13,63206.0,63205.0,0.079103]
[1727103844108,0.142,63206.0,63205.0,0.080103]
[1727103844608,0.012,63206.0,63205.0,0.080103]
[1727103850010,0.281102,63206.0,63205.0,0.001]
[1727103851011,0.360204,63206.0,63205.0,0.001]
[1727103851209,0.360204,63206.0,63195.0,0.06288702]
[1727103851210,0.079107,63203.0,63195.0,0.12628126]
[1727103851516,0.19,63201.0,63195.0,0.079116]
[1727103851808,0.19,63201.0,63194.0,0.04716526]
[1727103852205,0.19,63201.0,63193.0,0.12628326]
[1727103852401,0.19,63201.0,63185.0,0.3608]
[1727103852402,0.439913,63197.0,63196.0,0.002]
[1727103853003,0.079121,63191.0,63189.0,0.079123]
[1727103853210,0.077121,63191.0,63189.0,0.079123]
[1727103853725,0.077121,63191.0,63190.0,0.079122]
[1727103854119,0.069123,63189.0,63188.0,0.04716526]
[1727103854415,0.079126,63187.0,63186.0,0.04716526]
[1727103855116,0.079126,63187.0,63185.0,0.3608]
[1727103855414,0.001,63191.0,63186.0,0.0630215]
[1727103855615,0.3645,63198.0,63189.0,0.19]
[1727103855803,0.3608,63198.0,63193.0,0.04726264]
[1727103856007,0.3608,63198.0,63197.0,0.079113]
[1727103856209,0.3608,63198.0,63195.0,0.04726264]
[1727103856513,0.3608,63198.0,63191.0,0.12638264]
[1727103856727,0.19,63196.0,63192.0,0.04726264]
[1727103857214,0.079117,63194.0,63192.0,0.12638164]
[1727103857409,0.3638,63198.0,63192.0,0.12638164]
[1727103857608,0.079113,63197.0,63193.0,0.079118]
[1727103858402,0.3608,63198.0,63192.0,0.04726264]
[1727103858403,0.079115,63196.0,63192.0,0.04726264]
[1727103858606,0.3608,63198.0,63193.0,0.079117]
[1727103858908,0.439913,63198.0,63193.0,0.079117]
[1727103859314,0.09077,63197.0,63193.0,0.079117]
[1727103859509,0.09077,63197.0,63194.0,0.079117]
[1727103860115,0.09077,63197.0,63195.0,0.079116]
[1727103860614,0.09077,63197.0,63196.0,0.079114]
[1727103860818,0.09177,63197.0,63196.0,0.079114]
[1727103861323,0.09177,63197.0,63196.0,1.422948]
[1727103861505,0.09377,63197.0,63196.0,1.44768215]
[1727103862119,0.09377,63197.0,63196.0,0.65768215]
[1727103863015,0.09077,63197.0,63196.0,0.65768215]
[1727103863214,0.09477,63197.0,63196.0,0.18296215]
[1727103863521,0.09477,63197.0,63196.0,0.12635454]
[1727103864020,0.09477,63197.0,63196.0,0.079114]
[1727103865215,0.13199,63197.0,63196.0,0.12635454]
[1727103865414,0.13199,63197.0,63196.0,0.20546854]
[1727103865623,0.00237452,63204.0,63196.0,0.4359444]
[1727103865822,0.00237452,63204.0,63203.0,0.079106]
[1727103866618,0.00237452,63204.0,63203.0,0.519012]
[1727103866824,0.00237452,63204.0,63203.0,0.649012]
[1727103866825,0.004,63204.0,63203.0,0.649012]
[1727103867011,0.004,63204.0,63203.0,0.728118]
[1727103867210,0.004,63204.0,63203.0,0.75284947]
[1727103867414,0.04702,63207.0,63206.0,0.158204]
[1727103867617,0.04702,63207.0,63206.0,0.22125177]
[1727103868321,0.04202,63207.0,63206.0,1.3366763]
[1727103868624,0.0037,63218.0,63217.0,0.079088]
[1727103868822,0.00237374,63223.0,63222.0,0.079082]
[1727103869213,0.13237374,63223.0,63222.0,0.079082]
[1727103870024,0.00237374,63223.0,63222.0,0.079082]
[1727103870428,0.03037374,63223.0,63222.0,0.080082]
[1727103870818,0.16037374,63223.0,63222.0,0.080082]
[1727103872222,0.16037374,63223.0,63222.0,0.001]
[1727103873022,0.16037374,63223.0,63222.0,0.080082]
[1727103873321,0.16037374,63223.0,63222.0,0.001]
[1727103873626,0.23945474,63223.0,63222.0,0.001]
[1727103876614,0.237081,63223.0,63222.0,0.080082]
[1727103876823,0.158,63223.0,63222.0,0.080082]
[1727103877028,0.028,63223.0,63222.0,0.080082]
[1727103881427,0.158,63223.0,63222.0,0.080082]
[1727103882227,0.028,63223.0,63222.0,0.080082]
[1727103882823,0.028,63223.0,63222.0,0.159164]
[1727103883038,0.028,63223.0,63222.0,0.17621608]
[1727103883231,0.028,63223.0,63222.0,0.09713408]
[1727103884835,0.107081,63223.0,63222.0,0.001]
[1727103885133,0.028,63223.0,63222.0,0.080082]
[1727103885928,0.028,63223.0,63222.0,0.001]
[1727103886128,0.107081,63223.0,63222.0,0.001]
[1727103887736,0.107081,63223.0,63222.0,0.080082]
[1727103887737,0.028,63223.0,63222.0,0.080082]
[1727103888930,0.107081,63223.0,63222.0,0.080082]
[1727103890233,0.107081,63223.0,63222.0,0.001]
[1727103890433,0.07909,63216.0,63214.0,0.12639967]
[1727103890637,0.07909,63216.0,63215.0,0.079091]
[1727103890934,0.079086,63219.0,63213.0,0.04730767]
[1727103891129,0.13,63220.0,63219.0,0.079086]
[1727103891632,0.014,63223.0,63215.0,0.04730767]
[1727103891836,0.014,63223.0,63222.0,0.079082]
[1727103892033,0.079083,63222.0,63220.0,0.079084]
[1727103892435,0.079083,63222.0,63221.0,0.079083]
[1727103892735,0.07908,63224.0,63219.0,0.04730767]
[1727103892939,0.07908,63224.0,63222.0,0.079082]
[1727103893138,0.13,63225.0,63224.0,0.079079]
[1727103893337,0.439876,63227.0,63222.0,0.04730767]
[1727103893338,0.3608,63227.0,63222.0,0.04730767]
[1727103893545,0.36172,63227.0,63226.0,0.079077]
[1727103893847,0.3608,63227.0,63226.0,0.079077]
[1727103894143,0.014,63224.0,63223.0,0.07908]
[1727103894438,0.014,63224.0,63223.0,0.12638767]
[1727103894741,0.13,63225.0,63224.0,0.079079]
[1727103894944,0.13,63225.0,63221.0,0.12638967]
[1727103895142,0.209079,63225.0,63222.0,0.04730767]
[1727103895439,0.07908,63224.0,63223.0,0.04730767]
[1727103895649,0.014,63224.0,63223.0,0.12638867]
[1727103895947,0.014,63224.0,63223.0,0.079081]
[1727103896346,0.014,63224.0,63223.0,0.14215994]
[1727103896530,0.144,63225.0,63224.0,0.079079]
[1727103896844,0.144,63225.0,63224.0,0.14215794]
[1727103897039,0.144,63225.0,63224.0,0.079079]
[1727103897252,0.144,63225.0,63224.0,0.14215794]
[1727103897635,0.014,63225.0,63224.0,0.14215794]
[1727103897835,0.028,63225.0,63224.0,0.14315794]
[1727103898348,0.014,63225.0,63224.0,0.14315794]
[1727103899649,0.028,63225.0,63224.0,0.14315794]
[1727103900248,0.028,63225.0,63224.0,0.080079]
[1727103900563,0.107078,63225.0,63224.0,0.080079]
[1727103900745,0.028,63225.0,63224.0,0.080079]
[1727103903151,0.107078,63225.0,63224.0,0.001]
[1727103903353,0.107078,63225.0,63218.0,0.04742359]
[1727103903354,1.30973947,63225.0,63218.0,0.04742359]
[1727103903537,1.30973947,63225.0,63206.0,0.082801]
[1727103903538,0.4908,63219.0,63210.0,0.06307894]
[1727103903750,0.079102,63207.0,63202.0,0.0037]
[1727103903945,0.079102,63207.0,63197.0,0.12071116]
[1727103903946,0.3608,63203.0,63197.0,0.02462025]
[1727103904146,0.13,63198.0,63197.0,0.02462025]
[1727103904345,0.13,63198.0,63188.0,0.06545278]
[1727103904346,0.569912,63198.0,63188.0,0.06545278]
[1727103904647,0.569912,63198.0,63188.0,0.08149784]
[1727103904648,0.13,63189.0,63188.0,0.08149784]
[1727103905748,0.13,63197.0,63194.0,0.079117]
[1727103906655,0.079116,63195.0,63189.0,0.079122]
[1727103906857,0.13,63191.0,63189.0,0.079122]
[1727103907056,0.13,63195.0,63188.0,0.00337384]
[1727103907243,0.13,63195.0,63192.0,0.079119]
[1727103907444,0.13,63195.0,63193.0,0.02473804]
[1727103907846,0.4908,63195.0,63193.0,0.02473804]
[1727103908056,0.4908,63195.0,63194.0,0.001]
[1727103908566,0.4908,63195.0,63194.0,0.079117]
[1727103908567,0.3718,63195.0,63194.0,0.079117]
[1727103908854,0.3718,63195.0,63194.0,0.260517]
[1727103909044,0.3718,63195.0,63194.0,0.28525407]
[1727103909045,0.011,63195.0,63194.0,0.28525407]
[1727103909242,0.019,63195.0,63194.0,0.20613707]
[1727103909451,0.019,63195.0,63194.0,0.02473707]
[1727103909452,0.149,63195.0,63194.0,0.02473707]
[1727103909643,0.149,63195.0,63193.0,0.001]
[1727103909644,0.079117,63194.0,63193.0,0.001]
[1727103909845,0.169717,63194.0,63193.0,0.001]
[1727103910053,0.0906,63194.0,63188.0,0.00237384]
[1727103910254,0.0896,63194.0,63189.0,0.02473916]
[1727103910454,0.0896,63194.0,63188.0,0.00237384]
[1727103910455,0.13,63191.0,63188.0,0.00237384]
[1727103910664,0.079122,63190.0,63188.0,0.00237384]
[1727103910856,0.078122,63190.0,63188.0,0.00237384]
[1727103911062,0.079123,63189.0,63188.0,0.00237384]
[1727103911249,0.13,63191.0,63188.0,0.02473927]
[1727103911450,0.079123,63189.0,63186.0,0.10956481]
[1727103911650,0.078123,63189.0,63186.0,0.10956481]
[1727103911854,0.3608,63190.0,63185.0,0.3616]
[1727103912062,0.3608,63190.0,63186.0,0.02473938]
[1727103912251,0.079126,63188.0,63187.0,0.02473985]
[1727103912457,0.079126,63188.0,63185.0,0.3608]
[1727103913456,0.080126,63188.0,63185.0,0.37817188]
[1727103913774,0.079126,63187.0,63185.0,0.37817188]
[1727103914776,0.079127,63186.0,63185.0,0.37817188]
[1727103916073,0.003,63187.0,63185.0,0.37817188]
[1727103916389,0.003,63187.0,63186.0,0.079127]
[1727103916882,0.0037,63197.0,63195.0,0.079116]
[1727103917070,0.0965,63201.0,63195.0,0.079116]
[1727103917071,0.079109,63201.0,63195.0,0.079116]
[1727103917273,0.3608,63205.0,63196.0,0.2235]
[1727103917582,0.3608,63205.0,63197.0,0.0934]
[1727103917583,0.079108,63202.0,63197.0,0.0934]
[1727103917779,0.4908,63198.0,63186.0,0.0037]
[1727103917978,0.13,63187.0,63185.0,0.01737188]
[1727103918180,0.079127,63186.0,63183.0,0.079131]
[1727103918372,0.209122,63190.0,63186.0,0.079127]
[1727103918577,0.3608,63192.0,63182.0,0.24296053]
[1727103918777,0.07912,63192.0,63188.0,0.079124]
[1727103918984,0.43992,63192.0,63188.0,0.079124]
[1727103919372,0.43992,63192.0,63182.0,0.24296053]
[1727103919578,0.07912,63192.0,63182.0,0.24296053]
[1727103919877,0.13,63194.0,63190.0,0.079122]
[1727103920071,0.209118,63194.0,63190.0,0.079122]
[1727103920472,0.002,63192.0,63190.0,0.079122]
[1727103920678,0.002,63192.0,63191.0,0.079121]
[1727103921387,0.002,63192.0,63190.0,0.001]
[1727103921688,0.079121,63191.0,63182.0,0.24296053]
[1727103921871,0.078121,63191.0,63188.0,0.079124]
[1727103922078,0.3608,63189.0,63182.0,0.01726053]
[1727103922373,0.079139,63177.0,63173.0,0.0037]
[1727103922580,0.4908,63177.0,63170.0,0.0912]
[1727103922783,0.13,63171.0,63170.0,0.0912]
[1727103922988,0.079144,63173.0,63170.0,0.0912]
[1727103923188,0.079144,63173.0,63170.0,0.170347]
[1727103923390,0.13,63171.0,63170.0,0.079147]
[1727103923789,0.13,63171.0,63170.0,0.01753158]
[1727103923990,0.13,63171.0,63162.0,0.01979118]
[1727103924285,0.13,63174.0,63170.0,0.079146]
[1727103924478,0.13,63171.0,63167.0,0.079151]
[1727103924675,0.13,63171.0,63162.0,0.0366775]
[1727103924676,0.13,63168.0,63162.0,0.0366775]
[1727103924878,0.4908,63171.0,63162.0,0.0366775]
[1727103925086,0.4918,63171.0,63166.0,0.079151]
[1727103925393,0.4918,63171.0,63167.0,0.07915]
[1727103925580,0.131,63171.0,63165.0,0.079153]
[1727103925892,0.131,63171.0,63162.0,0.0366775]
[1727103926086,0.131,63171.0,63166.0,0.079152]
[1727103926391,0.079143,63174.0,63168.0,0.079149]
[1727103926587,0.13,63170.0,63168.0,0.079149]
[1727103927094,0.00088,63177.0,63168.0,0.13]
[1727103927285,0.36538,63182.0,63176.0,0.13]
[1727103927588,0.45868,63188.0,63183.0,0.07913]
[1727103927799,0.13,63186.0,63183.0,0.07913]
[1727103929095,0.142,63186.0,63178.0,0.3608]
[1727103929295,0.142,63186.0,63179.0,0.079136]
[1727103929296,0.13,63181.0,63179.0,0.079136]
[1727103929491,0.13,63181.0,63178.0,0.3608]
[1727103929696,0.13,63181.0,63178.0,0.01735303]
[1727103929885,0.13,63181.0,63179.0,0.079136]
[1727103930786,0.13,63181.0,63177.0,0.182]
[1727103930989,0.13,63181.0,63175.0,0.06307894]
[1727103930990,0.07914,63176.0,63175.0,0.06307894]
[1727103931299,0.07914,63176.0,63169.0,0.07884868]
[1727103931300,0.07914,63176.0,63173.0,0.06307894]
[1727103931791,0.209142,63174.0,63173.0,0.06307894]
[1727103932004,0.209142,63174.0,63172.0,0.06307894]
[1727103932387,0.209142,63174.0,63171.0,0.07884868]
[1727103932787,0.209142,63174.0,63171.0,0.15799468]
[1727103932995,0.007,63174.0,63173.0,0.079143]
[1727103933198,0.007,63174.0,63173.0,0.17318163]
[1727103933791,0.007,63174.0,63173.0,0.66398163]
[1727103934110,0.13,63186.0,63173.0,0.77589196]
[1727103934285,0.13,63186.0,63180.0,0.07887615]
[1727103934486,0.36168,63188.0,63185.0,0.06310645]
[1727103934690,0.3608,63188.0,63187.0,0.079126]
[1727103935089,0.3608,63188.0,63187.0,0.14223245]
[1727103935492,0.3608,63188.0,63187.0,0.079126]
[1727103936289,0.3608,63188.0,63187.0,0.15800215]
[1727103936490,0.3748,63188.0,63187.0,0.079126]
[1727103936702,0.3748,63188.0,63187.0,0.15800215]
[1727103937201,0.3748,63188.0,63187.0,0.079126]
[1727103937704,0.3888,63188.0,63187.0,0.080126]
[1727103938093,0.3798,63188.0,63187.0,0.081126]
[1727103938700,0.3818,63188.0,63187.0,0.081126]
[1727103939296,0.5118,63188.0,63187.0,0.081126]
[1727103939807,0.3818,63188.0,63187.0,0.081126]
[1727103940007,0.021,63188.0,63187.0,0.081126]
[1727103940998,0.022,63188.0,63187.0,0.002]
[1727103941401,0.022,63188.0,63187.0,0.081126]
[1727103941605,0.023,63188.0,63187.0,0.081126]
[1727103941900,0.024,63188.0,63187.0,0.081126]
[1727103942299,0.023,63188.0,63187.0,0.081126]
[1727103942897,0.02,63188.0,63187.0,0.081126]
[1727103944104,0.017,63188.0,63187.0,0.081126]
[1727103944699,0.021,63188.0,63187.0,0.081126]
[1727103945100,0.465924,63188.0,63187.0,0.002]
[1727103945408,0.675048,63188.0,63187.0,0.002]
[1727103945802,0.209136,63179.0,63178.0,0.06310695]
[1727103945997,0.4908,63179.0,63175.0,0.06310695]
[1727103946314,0.07914,63176.0,63175.0,0.06310695]
[1727103946614,0.079141,63175.0,63174.0,0.06310695]
[1727103946906,0.209141,63175.0,63174.0,0.06310695]
[1727103947106,0.49172,63179.0,63173.0,0.06310695]
[1727103947294,0.49172,63179.0,63174.0,0.06310695]
[1727103947295,0.4908,63179.0,63174.0,0.06310695]
[1727103947715,0.012,63176.0,63175.0,0.001]
[1727103947916,0.09114,63176.0,63175.0,0.001]
[1727103948214,0.09114,63176.0,63162.0,0.09835139]
[1727103948215,0.079156,63163.0,63162.0,0.0037]
[1727103948514,0.4908,63163.0,63159.0,0.06310695]
[1727103948909,0.4898,63163.0,63159.0,0.06310695]
[1727103949404,0.4898,63163.0,63158.0,0.08289839]
[1727103949606,0.568956,63163.0,63162.0,0.004]
[1727103950205,0.568956,63163.0,63156.0,0.440764]
[1727103950206,0.568956,63163.0,63158.0,0.06310695]
[1727103950408,0.3608,63163.0,63161.0,0.079158]
[1727103950597,0.3608,63163.0,63162.0,0.001]
[1727103950801,0.001,63163.0,63162.0,0.080157]
[1727103951004,0.001,63163.0,63162.0,0.16801343]
[1727103951198,0.001,63163.0,63162.0,0.16799249]
[1727103951506,0.001,63163.0,63162.0,0.1432395]
[1727103951814,0.001,63163.0,63162.0,0.001]
[1727103952011,0.001,63163.0,63162.0,0.0640825]
[1727103952217,0.001,63163.0,63162.0,0.080157]
[1727103952908,0.13,63167.0,63162.0,0.006]
[1727103953416,0.13,63163.0,63162.0,0.006]
[1727103953613,0.209156,63163.0,63162.0,0.006]
[1727103953908,0.209156,63163.0,63153.0,0.07887615]
[1727103953909,0.079157,63162.0,63146.0,0.0630825]
[1727103954108,0.13,63149.0,63146.0,0.0630825]
[1727103954311,0.13,63149.0,63146.0,0.079176]
[1727103954706,0.13,63149.0,63146.0,0.09655764]
[1727103955023,0.129,63149.0,63146.0,0.09655764]
[1727103955211,0.13,63152.0,63146.0,0.01738164]
[1727103955404,0.13,63152.0,63144.0,0.0630825]
[1727103955715,0.001,63149.0,63148.0,0.079175]
[1727103955903,0.001,63149.0,63148.0,0.10392858]
[1727103956102,0.001,63149.0,63148.0,1.17900858]
[1727103956303,0.001,63149.0,63148.0,0.079175]
[1727103956610,0.001,63149.0,63146.0,0.004]
[1727103956821,0.001,63149.0,63147.0,0.079175]
[1727103957204,0.001,63149.0,63148.0,0.079175]
[1727103957708,0.001,63149.0,63148.0,1.284255]
[1727103957709,0.002,63149.0,63148.0,1.284255]
[1727103958210,0.0037,63159.0,63149.0,0.47504]
[1727103958408,0.0037,63165.0,63164.0,0.079155]
[1727103958713,0.14734115,63169.0,63158.0,0.13]
[1727103959017,0.13,63161.0,63160.0,0.07916]
[1727103960315,0.13,63161.0,63158.0,0.01733999]
[1727103960614,0.13,63161.0,63155.0,0.0925]
[1727103960615,0.001,63159.0,63155.0,0.0925]
[1727103960816,0.131,63159.0,63158.0,0.079162]
[1727103961014,0.13,63159.0,63158.0,0.079162]
[1727103961314,0.13,63159.0,63155.0,0.0925]
[1727103961519,0.13,63159.0,63147.0,0.4916]
[1727103961520,0.209161,63159.0,63147.0,0.4916]
[1727103961723,0.13,63156.0,63155.0,0.079166]
[1727103962015,0.006,63161.0,63158.0,0.079161]
[1727103962215,0.13,63160.0,63158.0,0.079161]
[1727103962512,0.20916,63160.0,63150.0,0.11053999]
[1727103962719,0.13,63156.0,63150.0,0.01733999]
[1727103962913,0.13,63156.0,63155.0,0.079166]
[1727103963317,0.13,63156.0,63151.0,0.07917]
[1727103963511,0.13,63152.0,63151.0,0.07917]
[1727103963817,0.3608,63155.0,63148.0,0.0958]
[1727103963818,0.3608,63155.0,63148.0,0.24317595]
[1727103964003,0.3608,63155.0,63154.0,0.079167]
[1727103964208,0.003,63159.0,63158.0,0.079162]
[1727103964420,0.14691531,63163.0,63154.0,0.3608]
[1727103964622,0.14691531,63163.0,63160.0,0.079159]
[1727103964808,0.13,63163.0,63161.0,0.079158]
[1727103965118,0.13,63168.0,63167.0,0.079151]
[1727103965506,0.3608,63171.0,63167.0,0.13]
[1727103965707,0.3608,63171.0,63170.0,0.079147]
[1727103966116,0.4908,63171.0,63170.0,0.079147]
[1727103966412,0.4908,63171.0,63166.0,0.3608]
[1727103966615,0.13,63168.0,63162.0,0.079156]
[1727103966921,0.13,63161.0,63160.0,0.09612275]
[1727103967114,0.13,63161.0,63160.0,0.07916]
[1727103968317,0.13,63161.0,63153.0,0.3608]
[1727103968318,0.13,63161.0,63156.0,0.079163]
[1727103968507,0.13,63161.0,63153.0,0.3608]
[1727103968508,0.13,63157.0,63153.0,0.3608]
[1727103968816,0.209167,63154.0,63153.0,0.3608]
[1727103969320,0.13,63154.0,63148.0,0.00237536]
[1727103969917,0.13,63154.0,63150.0,0.079171]
[1727103970509,0.209167,63154.0,63153.0,0.002]
[1727103970718,0.080167,63154.0,63153.0,0.002]
[1727103971027,0.132,63154.0,63150.0,0.003]
[1727103971211,0.002,63154.0,63150.0,0.003]
[1727103971614,0.001,63154.0,63152.0,0.079169]
[1727103971815,0.001,63154.0,63148.0,0.00237536]
[1727103971816,0.001,63154.0,63153.0,0.081168]
[1727103972408,0.001,63154.0,63153.0,0.211168]
[1727103972614,0.3608,63161.0,63160.0,0.07916]
[1727103973220,0.3645,63171.0,63164.0,0.079155]
[1727103973424,0.3608,63171.0,63170.0,0.079147]
[1727103974321,0.446946,63171.0,63166.0,0.079152]
[1727103974623,0.13,63167.0,63166.0,0.079152]
[1727103974827,0.38276,63171.0,63168.0,0.079148]
[1727103975032,0.3818,63171.0,63168.0,0.079148]
[1727103975326,0.3818,63171.0,63170.0,0.079147]
[1727103976429,0.014,63171.0,63170.0,0.209147]
[1727103976621,0.027,63171.0,63170.0,0.209147]
[1727103976819,0.027,63171.0,63170.0,0.27210398]
[1727103977023,0.024,63171.0,63170.0,0.209147]
[1727103977542,0.013,63171.0,63170.0,0.209147]
[1727103977728,0.0037,63181.0,63180.0,0.079135]
[1727103977930,0.13333487,63186.0,63184.0,0.079129]
[1727103978231,0.49413487,63186.0,63184.0,0.079129]
[1727103978525,0.49317487,63186.0,63184.0,0.079129]
[1727103979233,0.49317487,63186.0,63179.0,0.079136]
[1727103979432,0.49317487,63186.0,63175.0,0.0964]
[1727103979725,0.014,63181.0,63180.0,0.080135]
[1727103980523,0.209134,63181.0,63179.0,0.001]
[1727103980726,0.569935,63180.0,63179.0,0.001]
[1727103980925,0.666335,63180.0,63179.0,0.001]
[1727103981126,0.74547,63180.0,63179.0,0.001]
[1727103981423,0.13,63169.0,63167.0,0.01914374]
[1727103981626,1.611175,63180.0,63167.0,0.00237464]
[1727103981627,0.13,63172.0,63167.0,0.00237464]
[1727103982128,0.47847549,63180.0,63169.0,0.13]
[1727103982422,0.0037,63184.0,63174.0,0.079142]
[1727103982617,0.008,63181.0,63180.0,0.001]
[1727103983036,0.217133,63181.0,63180.0,0.001]
[1727103983420,0.011,63180.0,63172.0,0.079144]
[1727103983722,0.13,63173.0,63169.0,0.001]
[1727103983922,0.36168,63176.0,63171.0,0.079145]
[1727103984124,0.3608,63176.0,63171.0,0.079145]
[1727103984429,0.19,63179.0,63167.0,0.00237464]
[1727103984625,0.089135,63180.0,63173.0,0.079143]
[1727103985130,0.01,63176.0,63173.0,0.079143]
[1727103985424,0.01,63176.0,63171.0,0.001]
[1727103985625,0.01,63176.0,63175.0,0.079141]
[1727103985825,0.01,63180.0,63175.0,0.079141]
[1727103986018,0.01,63180.0,63173.0,0.001]
[1727103986213,0.089136,63180.0,63173.0,0.080143]
[1727103986414,0.013,63176.0,63173.0,0.080143]
[1727103986618,0.013,63176.0,63175.0,0.079141]
[1727103987223,0.024,63180.0,63175.0,0.079141]
[1727103987423,0.011,63176.0,63175.0,0.079141]
[1727103987927,0.014,63180.0,63173.0,0.001]
[1727103988132,0.011,63176.0,63175.0,0.001]
[1727103988828,0.45094,63176.0,63175.0,0.001]
[1727103989035,0.079136,63179.0,63175.0,0.079141]
[1727103989234,0.079136,63179.0,63176.0,0.079139]
[1727103989530,0.439938,63177.0,63175.0,0.001]
[1727103990226,0.3608,63177.0,63175.0,0.001]
[1727103990530,0.014,63179.0,63176.0,0.07914]
[1727103990736,0.3608,63178.0,63176.0,0.07914]
[1727103990918,0.3608,63178.0,63175.0,0.001]
[1727103991236,0.093139,63177.0,63175.0,0.002]
[1727103991420,0.104139,63177.0,63175.0,0.002]
[1727103991624,0.025,63177.0,63175.0,0.002]
[1727103991840,0.093139,63177.0,63175.0,0.001]
[1727103992027,0.093139,63177.0,63176.0,0.001]
[1727103992525,0.014,63177.0,63176.0,0.001]
[1727103992722,0.079138,63177.0,63176.0,0.002]
[1727103992921,0.38672,63178.0,63176.0,0.002]
[1727103992922,0.025,63178.0,63176.0,0.002]
[1727103993136,0.025,63178.0,63177.0,0.079138]
[1727103993340,0.104138,63178.0,63176.0,0.002]
[1727103993627,0.025,63177.0,63176.0,0.001]
[1727103993821,0.025,63177.0,63176.0,0.08014]
[1727103994227,0.011,63178.0,63176.0,0.08014]
[1727103994433,0.104137,63178.0,63177.0,0.001]
[1727103994829,0.093137,63178.0,63177.0,0.001]
[1727103995136,0.172274,63178.0,63177.0,0.001]
[1727103995338,0.172274,63178.0,63164.0,0.4588]